bitfinex/quotes_BTCUSD_20220201
["timestamp","ask_amount","ask_price","bid_price","bid_amount"]
[1643725100583,0.22708602,38907.0,38886.0,0.6114]
[1643725100784,0.37708602,38908.0,38898.0,0.21259816]
[1643725100982,0.57603202,38907.0,38895.0,0.00184843]
[1643725101183,0.14778418,38905.0,38895.0,0.00184843]
[1643725101388,0.19778418,38905.0,38895.0,0.31088571]
[1643725101683,0.37486313,38908.0,38903.0,0.09366562]
[1643725101684,0.05124143,38908.0,38903.0,0.09366562]
[1643725101884,0.1736217,38908.0,38904.0,0.22708602]
[1643725102084,0.00124154,38908.0,38904.0,0.22708602]
[1643725102283,0.00124154,38908.0,38903.0,0.09366562]
[1643725102886,0.00124154,38908.0,38904.0,0.2851946]
[1643725103085,0.17248731,38914.0,38904.0,0.2851946]
[1643725103288,0.07714779,38910.0,38904.0,0.00184814]
[1643725103586,0.00124171,38908.0,38904.0,0.00184814]
[1643725104436,0.13728762,38907.0,38899.0,0.3916347]
[1643725104636,0.00124173,38908.0,38904.0,0.00184813]
[1643725105235,0.24476729,38915.0,38905.0,0.9]
[1643725105236,0.15,38915.0,38905.0,0.9]
[1643725105436,0.15,38915.0,38904.0,0.00184813]
[1643725105637,0.14144335,38911.0,38901.0,0.02195615]
[1643725106040,0.14144335,38911.0,38902.0,0.08324964]
[1643725106041,0.07752186,38909.0,38902.0,0.08324964]
[1643725106238,0.12752186,38909.0,38899.0,0.3916347]
[1643725106739,0.07752186,38909.0,38900.0,0.20727866]
[1643725106937,0.14144335,38911.0,38900.0,0.20727866]
[1643725107137,0.14144335,38911.0,38905.0,0.24969845]
[1643725108181,0.00062242,38910.0,38899.0,0.17077585]
[1643725108380,0.00062242,38910.0,38900.0,0.07454962]
[1643725108381,0.0822377,38908.0,38900.0,0.07454962]
[1643725108579,0.0822377,38908.0,38899.0,0.10647728]
[1643725108780,0.0822377,38908.0,38900.0,0.21325409]
[1643725108981,0.00062242,38910.0,38898.0,0.22875216]
[1643725109284,0.1,38916.0,38906.0,0.23355564]
[1643725109285,0.05,38915.0,38906.0,0.23355564]
[1643725109480,0.0012385,38910.0,38906.0,0.23355564]
[1643725109680,0.0012385,38910.0,38902.0,0.00184974]
[1643725110081,0.0012385,38910.0,38906.0,0.10186031]
[1643725110279,0.08388461,38913.0,38906.0,0.10186031]
[1643725110681,0.00123863,38910.0,38905.0,0.00184968]
[1643725111281,0.00123863,38910.0,38905.0,0.02383596]
[1643725111481,0.00123863,38910.0,38899.0,0.10647728]
[1643725111482,0.1,38914.0,38899.0,0.10647728]
[1643725111841,0.1,38914.0,38904.0,0.10396552]
[1643725111842,0.09098267,38911.0,38904.0,0.10396552]
[1643725112034,0.1,38914.0,38908.0,0.21941249]
[1643725112244,0.5925,38924.0,38909.0,0.22914186]
[1643725112438,0.646,38925.0,38909.0,0.22914186]
[1643725112735,0.646,38925.0,38909.0,0.1]
[1643725112935,0.00123563,38919.0,38915.0,0.08091974]
[1643725113135,0.08328698,38922.0,38916.0,0.85]
[1643725113535,0.08328698,38922.0,38917.0,0.348509]
[1643725113734,0.08328698,38922.0,38915.0,0.23564396]
[1643725114236,0.22914186,38927.0,38915.0,0.28564396]
[1643725114439,0.1963,38930.0,38915.0,0.28564396]
[1643725115235,0.08152946,38925.0,38921.0,0.28460452]
[1643725115437,0.08152946,38925.0,38915.0,0.07136322]
[1643725115684,0.08152946,38925.0,38915.0,0.05]
[1643725115882,0.08152946,38925.0,38914.0,0.45873785]
[1643725116084,0.08152946,38925.0,38914.0,0.40873785]
[1643725116283,0.08152946,38925.0,38914.0,0.45873785]
[1643725116485,0.1963,38930.0,38921.0,0.22580303]
[1643725116684,0.24562369,38932.0,38921.0,0.22580303]
[1643725116884,0.47903588,38932.0,38914.0,0.45873785]
[1643725117087,0.47903588,38932.0,38910.0,0.35431672]
[1643725117286,2.04143588,38932.0,38911.0,0.05]
[1643725117684,2.04143588,38932.0,38914.0,0.01826445]
[1643725117685,0.348946,38931.0,38914.0,0.01826445]
[1643725117890,0.13583622,38921.0,38914.0,0.01826445]
[1643725118087,0.08582439,38916.0,38914.0,0.01826445]
[1643725118288,0.25626554,38923.0,38914.0,0.01826445]
[1643725118487,0.00123254,38923.0,38914.0,0.01826445]
[1643725118791,0.23322381,38924.0,38913.0,0.22293665]
[1643725119087,0.00123252,38921.0,38913.0,0.22293665]
[1643725119351,0.00123252,38921.0,38915.0,0.07743609]
[1643725119946,0.15,38925.0,38915.0,0.07743609]
[1643725120346,0.05003251,38925.0,38916.0,0.95]
[1643725120547,0.14394267,38927.0,38916.0,0.95]
[1643725120846,0.23402117,38926.0,38920.0,0.2843034]
[1643725121047,0.09785104,38925.0,38920.0,0.2843034]
[1643725121446,0.22973919,38924.0,38912.0,0.1992]
[1643725121847,0.09785104,38925.0,38916.0,0.02131468]
[1643725122047,0.23290502,38924.0,38916.0,0.02131468]
[1643725122249,0.09785104,38925.0,38916.0,0.02131468]
[1643725122447,0.09785104,38925.0,38916.0,0.25776823]
[1643725122648,0.00061779,38923.0,38916.0,0.23645355]
[1643725122849,0.00061779,38923.0,38916.0,0.23145355]
[1643725123286,0.00061779,38923.0,38916.0,0.252563]
[1643725123486,0.1,38925.0,38911.0,0.13813731]
[1643725123686,0.1,38926.0,38915.0,0.00177149]
[1643725123886,0.08283048,38920.0,38915.0,0.00177149]
[1643725124287,0.00106447,38923.0,38915.0,0.00177149]
[1643725124689,0.3033,38925.0,38911.0,0.13813731]
[1643725124892,0.3033,38925.0,38915.0,0.00177148]
[1643725125086,0.00106446,38923.0,38915.0,0.00177148]
[1643725125487,0.07926426,38920.0,38916.0,0.2851326]
[1643725125688,0.00106446,38923.0,38916.0,0.2851326]
[1643725125887,0.3033,38925.0,38916.0,0.2851326]
[1643725125888,0.1,38925.0,38916.0,0.2851326]
[1643725126289,0.00106447,38923.0,38916.0,0.2851326]
[1643725126689,0.10509019,38923.0,38916.0,0.2851326]
[1643725127137,0.10402572,38923.0,38916.0,0.2851326]
[1643725127334,0.10509019,38923.0,38916.0,0.2851326]
[1643725127735,0.10509019,38923.0,38917.0,0.08538504]
[1643725127937,0.10509019,38923.0,38916.0,0.3047088]
[1643725128136,0.10509019,38923.0,38916.0,0.2851326]
[1643725128435,0.10402572,38923.0,38916.0,0.2851326]
[1643725128637,0.10402572,38923.0,38909.0,0.04253566]
[1643725128638,0.67680256,38922.0,38915.0,0.00175117]
[1643725128836,0.57680256,38922.0,38915.0,0.00175117]
[1643725129038,0.348906,38921.0,38915.0,0.00175117]
[1643725129536,1.77108774,38916.0,38909.0,0.04253566]
[1643725129735,1.364,38914.0,38909.0,0.00700561]
[1643725129936,0.40708774,38916.0,38909.0,0.00700561]
[1643725129937,1.364,38912.0,38909.0,0.00700561]
[1643725130144,0.348906,38911.0,38909.0,0.00700561]
[1643725130336,1.3,38910.0,38897.0,0.03822542]
[1643725130598,0.27674022,38906.0,38898.0,0.22785656]
[1643725130797,0.14434984,38907.0,38897.0,0.279289]
[1643725131498,1.428278,38913.0,38897.0,0.279289]
[1643725131499,0.08106129,38909.0,38903.0,0.0875478]
[1643725131696,0.08106129,38909.0,38897.0,0.279289]
[1643725131697,0.348906,38908.0,38897.0,0.279289]
[1643725131896,0.08106129,38909.0,38897.0,0.279289]
[1643725132296,0.20416204,38909.0,38897.0,0.279289]
[1643725132799,0.20416204,38909.0,38902.0,0.09249829]
[1643725132997,0.348906,38908.0,38902.0,0.09249829]
[1643725133197,0.20416204,38909.0,38902.0,0.09249829]
[1643725133397,0.348906,38908.0,38897.0,0.29944943]
[1643725133596,0.254679,38905.0,38897.0,0.02016043]
[1643725133800,0.348906,38904.0,38897.0,0.02016043]
[1643725134196,0.348906,38904.0,38889.0,0.22976112]
[1643725134445,0.26085565,38905.0,38889.0,0.22976112]
[1643725134645,0.09742523,38901.0,38899.0,0.00174629]
[1643725134844,0.1701718,38902.0,38899.0,0.00174629]
[1643725135642,0.1701718,38902.0,38895.0,0.09162663]
[1643725135843,0.1701718,38902.0,38899.0,0.00177354]
[1643725136447,0.348906,38901.0,38899.0,0.00177354]
[1643725136844,0.348906,38901.0,38884.0,0.22775326]
[1643725136845,0.7,38900.0,38884.0,0.22775326]
[1643725137045,0.7,38900.0,38898.0,0.00177356]
[1643725137250,2.962906,38899.0,38898.0,0.00177356]
[1643725137645,1.812906,38899.0,38898.0,0.00177356]
[1643725137846,0.448906,38899.0,38898.0,0.00177356]
[1643725138091,0.348906,38899.0,38894.0,0.01879027]
[1643725138290,0.41645742,38902.0,38897.0,0.00177361]
[1643725138291,0.1701718,38902.0,38897.0,0.00177361]
[1643725138489,0.348906,38901.0,38897.0,0.00177361]
[1643725138791,0.1,38900.0,38897.0,0.00177361]
[1643725138989,0.63498827,38899.0,38897.0,0.00177361]
[1643725139188,0.95,38898.0,38888.0,0.0031]
[1643725139388,0.1,38900.0,38897.0,0.00173977]
[1643725139590,0.58311877,38899.0,38897.0,0.00173977]
[1643725139790,0.12636619,38898.0,38897.0,0.00173977]
[1643725140090,0.47527219,38898.0,38897.0,0.00173977]
[1643725140290,0.72243098,38898.0,38897.0,0.00173977]
[1643725140491,0.72243098,38898.0,38896.0,0.0017398]
[1643725140693,0.348906,38897.0,38896.0,0.0017398]
[1643725141292,0.43435537,38897.0,38896.0,0.0017398]
[1643725141493,0.43435537,38897.0,38888.0,0.20714764]
[1643725141695,0.08544937,38897.0,38895.0,0.00173983]
[1643725141945,0.348906,38896.0,38895.0,0.00173983]
[1643725142147,0.65618972,38903.0,38895.0,0.00173983]
[1643725142148,0.5919,38903.0,38895.0,0.00173983]
[1643725142743,0.6447,38909.0,38897.0,0.39950474]
[1643725142944,0.86808342,38909.0,38899.0,0.26809386]
[1643725143147,0.08030778,38903.0,38899.0,0.26809386]
[1643725143348,0.08030778,38903.0,38897.0,0.0017471]
[1643725143746,0.13030778,38903.0,38897.0,0.0017471]
[1643725143950,0.13030778,38903.0,38892.0,0.23634453]
[1643725144147,0.13030778,38903.0,38898.0,0.00174706]
[1643725145147,0.13030778,38903.0,38896.0,0.08834793]
[1643725145346,7.78e-06,38903.0,38899.0,0.00174705]
[1643725146389,7.78e-06,38903.0,38894.0,0.20951145]
[1643725146589,7.78e-06,38903.0,38899.0,0.00174414]
[1643725146990,0.348906,38902.0,38899.0,0.00174414]
[1643725147192,0.3468511,38902.0,38899.0,0.00174414]
[1643725147591,7.78e-06,38903.0,38898.0,0.02160954]
[1643725147790,0.348975,38902.0,38899.0,0.00174416]
[1643725147991,7.78e-06,38903.0,38899.0,0.00174416]
[1643725148190,0.1929,38908.0,38899.0,0.09560431]
[1643725148392,0.00104371,38911.0,38901.0,0.21278818]
[1643725148393,0.348975,38907.0,38901.0,0.21278818]
[1643725148596,0.348975,38909.0,38901.0,0.21278818]
[1643725148994,0.348975,38909.0,38902.0,0.00174405]
[1643725149195,0.52011967,38909.0,38902.0,0.00174405]
[1643725149445,0.20052,38910.0,38905.0,0.0950117]
[1643725149646,0.00104381,38911.0,38907.0,0.25128046]
[1643725150143,0.00104381,38911.0,38907.0,0.25302483]
[1643725150144,0.00104491,38911.0,38907.0,0.25302483]
[1643725150344,0.49319851,38922.0,38911.0,0.39587323]
[1643725150549,0.6567,38925.0,38911.0,0.39587323]
[1643725150742,0.5,38924.0,38916.0,0.26336211]
[1643725150945,0.72695882,38926.0,38910.0,0.22877222]
[1643725150946,0.348975,38923.0,38910.0,0.22877222]
[1643725151149,0.41322674,38925.0,38904.0,0.22877222]
[1643725151445,0.41322674,38925.0,38905.0,0.1927]
[1643725151446,0.20058,38924.0,38905.0,0.1927]
[1643725151644,0.20058,38924.0,38911.0,0.09001319]
[1643725151645,0.21134845,38917.0,38911.0,0.09001319]
[1643725151844,0.08668049,38917.0,38912.0,0.26284122]
[1643725152244,0.20058,38924.0,38912.0,0.26284122]
[1643725152245,0.23554844,38923.0,38912.0,0.26284122]
[1643725152447,0.348975,38922.0,38912.0,0.26284122]
[1643725152645,0.24074552,38921.0,38912.0,0.26284122]
[1643725152845,0.16454864,38919.0,38912.0,0.26284122]
[1643725153086,0.348975,38918.0,38906.0,0.11822491]
[1643725153385,0.16454864,38919.0,38905.0,0.60162467]
[1643725153789,0.00124435,38914.0,38908.0,0.00184674]
[1643725153986,0.00124435,38914.0,38911.0,0.02170012]
[1643725154186,0.00124435,38914.0,38911.0,0.28828652]
[1643725154786,0.05,38924.0,38911.0,0.2665864]
[1643725154787,0.24285772,38923.0,38911.0,0.2665864]
[1643725154987,0.00124435,38914.0,38911.0,0.35500481]
[1643725155189,0.00124435,38914.0,38912.0,0.348975]
[1643725155589,0.00124435,38914.0,38912.0,0.55405624]
[1643725155790,0.00124435,38914.0,38912.0,0.55179078]
[1643725155989,0.20022,38924.0,38913.0,1.3536816]
[1643725156188,0.28900241,38926.0,38913.0,0.2036816]
[1643725156189,0.00124435,38915.0,38913.0,0.2036816]
[1643725156391,0.00124435,38915.0,38914.0,0.348975]
[1643725156689,0.00124435,38915.0,38914.0,0.67008944]
[1643725157139,0.25836324,38927.0,38914.0,0.67008944]
[1643725157340,0.00124435,38916.0,38914.0,0.32111444]
[1643725157937,0.00124435,38916.0,38914.0,0.0938597]
[1643725158338,0.32330313,38924.0,38914.0,0.0938597]
[1643725158538,0.00124435,38917.0,38914.0,0.11043357]
[1643725159139,0.00124435,38917.0,38914.0,0.01657387]
[1643725159539,0.07758874,38918.0,38914.0,0.01657387]
[1643725159941,0.00124435,38917.0,38914.0,0.01657387]
[1643725160687,0.29721433,38924.0,38914.0,0.01657387]
[1643725160889,0.23968109,38922.0,38914.0,0.01657387]
[1643725161289,0.05,38924.0,38914.0,0.01657387]
[1643725161492,0.07645424,38922.0,38916.0,0.09171404]
[1643725161689,0.07645424,38922.0,38918.0,0.27685743]
[1643725161690,0.12645424,38922.0,38918.0,0.27685743]
[1643725161991,0.0642445,38925.0,38918.0,0.27685743]
[1643725162289,0.19273403,38929.0,38918.0,0.27685743]
[1643725162290,0.00062373,38922.0,38918.0,0.27685743]
[1643725162689,0.00062373,38922.0,38916.0,0.09171404]
[1643725163091,0.08984001,38921.0,38916.0,0.09171404]
[1643725163291,0.08984001,38921.0,38917.0,0.02199385]
[1643725163490,0.09038061,38921.0,38917.0,0.02199385]
[1643725163692,0.09038061,38921.0,38920.0,0.01655318]
[1643725163892,0.73378808,38921.0,38920.0,0.01655318]
[1643725164096,0.68378808,38921.0,38920.0,0.01655318]
[1643725164350,0.68324748,38921.0,38920.0,0.01655318]
[1643725164547,0.48881501,38921.0,38920.0,0.01655318]
[1643725164748,0.75124291,38921.0,38920.0,0.01655318]
[1643725164944,0.48881501,38921.0,38920.0,0.01655318]
[1643725165345,0.43881501,38921.0,38920.0,0.01655318]
[1643725166146,0.48881501,38921.0,38920.0,0.01655318]
[1643725166345,0.43881501,38921.0,38920.0,0.01655318]
[1643725167947,0.68906545,38921.0,38920.0,0.01655318]
[1643725168190,0.43881501,38921.0,38920.0,0.01655318]
[1643725168392,2.10232287,38921.0,38920.0,0.01655318]
[1643725168591,0.19276944,38919.0,38910.0,0.00174461]
[1643725168791,0.67769246,38918.0,38910.0,0.00174461]
[1643725168993,0.10211762,38915.0,38910.0,0.00174461]
[1643725169191,0.10211762,38915.0,38904.0,0.21164936]
[1643725169192,0.25344922,38914.0,38904.0,0.21164936]
[1643725169394,0.16672704,38914.0,38910.0,0.00174452]
[1643725169591,0.07797081,38911.0,38910.0,0.00174452]
[1643725169791,1.364,38917.0,38910.0,0.00174452]
[1643725169792,0.23435853,38915.0,38910.0,0.00174452]
[1643725170096,0.00103384,38919.0,38910.0,0.00174452]
[1643725170493,0.20058,38924.0,38918.0,0.27833101]
[1643725170494,0.19958,38924.0,38918.0,0.27833101]
[1643725170693,0.00103385,38919.0,38918.0,0.27833101]
[1643725171091,0.00103385,38919.0,38918.0,0.62730601]
[1643725171291,0.00103385,38919.0,38918.0,0.27833101]
[1643725171693,0.08527376,38925.0,38918.0,0.27833101]
[1643725171960,0.00104084,38920.0,38918.0,0.27833101]
[1643725172157,0.00104084,38920.0,38919.0,0.94859239]
[1643725172359,0.00104084,38920.0,38919.0,0.09859239]
[1643725172958,0.00104084,38921.0,38919.0,0.05859239]
[1643725173560,0.00104084,38921.0,38920.0,1.80590371]
[1643725173759,0.00104084,38921.0,38920.0,1.598975]
[1643725173961,0.728,38933.0,38920.0,1.598975]
[1643725174158,0.20697098,38936.0,38921.0,0.22804992]
[1643725174358,0.00104084,38922.0,38921.0,0.22804992]
[1643725174560,0.00104084,38922.0,38921.0,0.61317612]
[1643725175361,0.0820003,38931.0,38926.0,0.08627174]
[1643725175586,0.08450609,38932.0,38927.0,0.94987385]
[1643725175789,0.23566149,38937.0,38927.0,0.29987385]
[1643725175987,0.28566149,38937.0,38927.0,0.29987385]
[1643725176186,0.38566149,38937.0,38927.0,0.29987385]
[1643725176388,0.23566149,38937.0,38927.0,0.29987385]
[1643725176790,0.70145606,38938.0,38933.0,0.07632032]
[1643725176791,0.00103966,38934.0,38933.0,0.07632032]
[1643725177792,0.00103966,38935.0,38933.0,0.67818463]
[1643725178192,0.00103966,38935.0,38933.0,0.74238663]
[1643725178892,0.001,38938.0,38934.0,0.24235592]
[1643725179091,0.00103982,38936.0,38935.0,0.348975]
[1643725179347,0.00103982,38936.0,38935.0,1.55396103]
[1643725180246,0.00103982,38937.0,38935.0,1.55396103]
[1643725180446,0.00103982,38937.0,38936.0,1.48727714]
[1643725180646,0.003,38942.0,38936.0,1.48727714]
[1643725180647,9.83e-05,38946.0,38937.0,1.0]
[1643725180848,9.83e-05,38946.0,38938.0,0.22147164]
[1643725181247,9.83e-05,38946.0,38938.0,0.20094376]
[1643725181446,9.83e-05,38946.0,38938.0,0.20545703]
[1643725181647,9.83e-05,38946.0,38939.0,0.33602166]
[1643725181847,9.83e-05,38946.0,38940.0,0.56373625]
[1643725182047,9.83e-05,38946.0,38940.0,0.21476125]
[1643725182747,9.83e-05,38946.0,38941.0,0.00175945]
[1643725183392,9.83e-05,38946.0,38945.0,0.27946736]
[1643725183993,9.83e-05,38946.0,38945.0,0.07467041]
[1643725184393,9.83e-05,38946.0,38943.0,0.0017594]
[1643725184795,9.83e-05,38946.0,38936.0,0.24727576]
[1643725184993,9.83e-05,38946.0,38943.0,0.0017594]
[1643725185193,0.1702653,38946.0,38943.0,0.0017594]
[1643725185392,0.348975,38945.0,38943.0,0.0017594]
[1643725185994,0.348975,38945.0,38941.0,0.01802986]
[1643725186194,0.1702653,38946.0,38942.0,0.00175291]
[1643725187043,9.83e-05,38946.0,38942.0,0.00175291]
[1643725187244,0.348975,38945.0,38934.0,0.22773046]
[1643725187450,9.83e-05,38946.0,38942.0,0.00175291]
[1643725187644,0.1,38944.0,38942.0,0.00175291]
[1643725187845,0.1,38944.0,38925.0,0.2066]
[1643725187846,1.25,38942.0,38926.0,0.22773046]
[1643725188044,1.25,38942.0,38920.0,0.50265218]
[1643725188045,0.26602813,38930.0,38920.0,0.50265218]
[1643725188246,0.26602813,38930.0,38919.0,0.09841614]
[1643725188247,0.08551553,38924.0,38919.0,0.09841614]
[1643725188447,0.348975,38923.0,38919.0,0.09841614]
[1643725189344,0.08551553,38924.0,38919.0,0.09841614]
[1643725189543,0.23241996,38923.0,38919.0,0.09841614]
[1643725189744,0.08551553,38924.0,38919.0,0.09841614]
[1643725189948,0.23214695,38923.0,38920.0,0.00175253]
[1643725190589,0.348975,38922.0,38920.0,0.00175253]
[1643725190788,0.06424837,38924.0,38913.0,0.002]
[1643725190988,0.27551524,38927.0,38919.0,0.00175255]
[1643725191187,0.00617263,38929.0,38919.0,0.00175255]
[1643725191391,0.27312134,38929.0,38919.0,0.00175255]
[1643725191591,0.27312134,38929.0,38919.0,0.00101558]
[1643725191592,0.00617263,38929.0,38919.0,0.00101558]
[1643725191789,0.00617263,38929.0,38924.0,0.08998502]
[1643725192388,0.348975,38928.0,38924.0,0.08998502]
[1643725192591,0.00617263,38929.0,38924.0,0.08998502]
[1643725194089,0.00617263,38929.0,38924.0,0.11125904]
[1643725194343,0.00617263,38929.0,38924.0,0.08998502]
[1643725194937,0.00617263,38929.0,38919.0,0.00700478]
[1643725195143,0.14670808,38926.0,38919.0,0.00700478]
[1643725195339,0.348975,38925.0,38919.0,0.00700478]
[1643725195638,0.27786439,38926.0,38924.0,0.01870984]
[1643725195838,0.348975,38925.0,38923.0,0.10248734]
[1643725196038,0.348975,38925.0,38917.0,0.00175121]
[1643725196239,0.00617263,38929.0,38917.0,0.00175121]
[1643725196637,0.16440286,38927.0,38917.0,0.00175121]
[1643725196837,0.43731244,38927.0,38917.0,0.27325617]
[1643725197037,0.08123653,38922.0,38917.0,0.37872957]
[1643725197437,0.08123653,38922.0,38917.0,0.00175114]
[1643725198196,0.08123653,38922.0,38917.0,0.0017511]
[1643725198394,0.08123653,38922.0,38918.0,0.2987757]
[1643725198995,0.07040869,38929.0,38918.0,0.2987757]
[1643725199195,0.12040869,38929.0,38918.0,0.2987757]
[1643725199695,0.07040869,38929.0,38918.0,0.2987757]
[1643725199896,0.08931272,38926.0,38921.0,0.09623129]
[1643725200298,0.08931272,38926.0,38918.0,0.2987757]
[1643725200694,0.08931272,38926.0,38915.0,0.30608097]
[1643725200695,1.272e-05,38926.0,38917.0,0.00175117]
[1643725201096,0.23938145,38929.0,38917.0,0.00175117]
[1643725201299,0.07040869,38929.0,38917.0,0.00175117]
[1643725201597,0.07040869,38929.0,38917.0,0.01906844]
[1643725201846,0.07040869,38929.0,38917.0,0.00175117]
[1643725202238,0.07415591,38928.0,38923.0,0.08135246]
[1643725202439,0.07040869,38929.0,38923.0,0.08135246]
[1643725202639,0.348975,38928.0,38923.0,0.08135246]
[1643725202843,0.12040869,38929.0,38923.0,0.08135246]
[1643725203439,0.20037719,38929.0,38923.0,0.08135246]
[1643725203939,0.13614113,38929.0,38923.0,0.08135246]
[1643725204741,0.08614113,38929.0,38923.0,0.08135246]
[1643725205594,0.06423403,38928.0,38921.0,0.02060552]
[1643725205794,0.06423403,38928.0,38918.0,0.00700459]
[1643725206396,0.08614113,38929.0,38918.0,0.00700459]
[1643725206596,0.00617263,38929.0,38917.0,0.25149313]
[1643725206797,0.00617263,38929.0,38918.0,0.348975]
[1643725207098,0.00617263,38929.0,38919.0,0.23174243]
[1643725207295,0.00617263,38929.0,38927.0,0.2681018]
[1643725207496,0.00617263,38929.0,38927.0,0.35899216]
[1643725208496,0.00617263,38929.0,38927.0,0.09089036]
[1643725208795,0.00617263,38929.0,38920.0,0.05]
[1643725208995,0.00617263,38929.0,38921.0,0.1995317]
[1643725209196,0.00617263,38929.0,38921.0,0.20085446]
[1643725209446,0.00617263,38929.0,38919.0,0.22353029]
[1643725209648,0.00617263,38929.0,38922.0,0.27006967]
[1643725209850,0.08057463,38929.0,38924.0,0.07450907]
[1643725210248,0.00617263,38929.0,38924.0,0.07450907]
[1643725210648,0.00617263,38929.0,38919.0,0.20734683]
[1643725210848,7.263e-05,38929.0,38918.0,0.26290463]
[1643725211050,7.263e-05,38929.0,38919.0,0.20331553]
[1643725211348,0.00037263,38929.0,38918.0,0.2559]
[1643725211549,0.00037263,38929.0,38921.0,0.23925485]
[1643725211748,0.00037263,38929.0,38919.0,0.01833008]
[1643725211948,0.00037263,38929.0,38918.0,0.2559]
[1643725211949,0.08190943,38926.0,38921.0,0.08990055]
[1643725212351,0.08190943,38926.0,38918.0,0.114234]
[1643725212749,0.08190943,38926.0,38919.0,0.21757113]
[1643725212952,0.00037263,38929.0,38919.0,0.21757113]
[1643725213593,0.00037263,38929.0,38919.0,0.23941629]
[1643725213792,0.00037263,38929.0,38920.0,0.05]
[1643725214393,0.0900577,38924.0,38920.0,0.15168096]
[1643725214593,0.0900577,38924.0,38920.0,0.10168096]
[1643725215397,0.00037263,38929.0,38920.0,0.10168096]
[1643725215600,0.00037263,38929.0,38921.0,0.06423]
[1643725216200,0.00037263,38929.0,38920.0,0.15168096]
[1643725216399,0.09762963,38926.0,38920.0,0.15168096]
[1643725216599,0.00037263,38929.0,38920.0,0.15168096]
[1643725217041,0.00037263,38929.0,38921.0,0.20248299]
[1643725217240,0.00037263,38929.0,38922.0,0.20073146]
[1643725217439,0.00037263,38929.0,38922.0,0.25073146]
[1643725217941,0.00037263,38929.0,38926.0,0.29721371]
[1643725218144,0.00037263,38929.0,38922.0,0.05]
[1643725218540,0.00037263,38929.0,38920.0,0.26936726]
[1643725218941,0.00037263,38929.0,38920.0,0.2511]
[1643725219142,0.12904129,38926.0,38920.0,0.48170243]
[1643725219341,0.21496736,38926.0,38921.0,0.09643102]
[1643725219943,0.00037263,38929.0,38921.0,0.09643102]
[1643725220343,0.00037263,38929.0,38922.0,0.064228]
[1643725221003,0.00037263,38929.0,38927.0,0.07691475]
[1643725222805,0.00037263,38929.0,38926.0,0.23275479]
[1643725223007,0.00037263,38929.0,38925.0,0.064224]
[1643725224006,0.00037263,38929.0,38923.0,0.43271754]
[1643725224207,0.00037263,38929.0,38924.0,0.10524634]
[1643725224850,0.16592435,38927.0,38924.0,0.10524634]
[1643725225746,0.45820625,38935.0,38925.0,0.4]
[1643725225949,0.10449924,38931.0,38923.0,0.128442]
[1643725226547,0.46437694,38935.0,38923.0,0.128442]
[1643725226749,0.57860453,38935.0,38923.0,0.128442]
[1643725226947,0.1283897,38933.0,38926.0,0.23709357]
[1643725227348,0.1283897,38933.0,38923.0,0.178442]
[1643725227947,0.1283897,38933.0,38929.0,0.09534295]
[1643725227948,0.22235698,38933.0,38929.0,0.09534295]
[1643725228193,0.348975,38932.0,38929.0,0.09534295]
[1643725228894,0.348975,38932.0,38929.0,0.08604281]
[1643725229095,0.45,38931.0,38924.0,0.26986674]
[1643725229298,0.23024342,38933.0,38924.0,0.26986674]
[1643725229497,0.23906234,38934.0,38924.0,0.26986674]
[1643725229694,0.31100839,38935.0,38924.0,0.26986674]
[1643725229895,0.2286806,38934.0,38924.0,0.26986674]
[1643725230094,0.23875537,38934.0,38924.0,0.28978955]
[1643725230294,0.08817299,38932.0,38927.0,0.08074673]
[1643725230696,0.08817299,38932.0,38923.0,0.178442]
[1643725230697,0.5845215,38931.0,38923.0,0.178442]
[1643725230897,0.08817299,38932.0,38923.0,0.128442]
[1643725231497,0.08817299,38932.0,38923.0,0.123442]
[1643725231696,0.08817299,38932.0,38923.0,0.34203907]
[1643725231947,0.08817299,38932.0,38927.0,0.0908264]
[1643725234449,0.2467808,38935.0,38927.0,0.0908264]
[1643725235448,0.2467808,38935.0,38933.0,0.08640218]
[1643725235699,0.348975,38934.0,38926.0,0.064223]
[1643725235898,0.2467808,38935.0,38926.0,0.064223]
[1643725236300,0.05617069,38935.0,38926.0,0.064223]
[1643725236699,0.00617069,38935.0,38930.0,0.23645378]
[1643725237500,0.00103215,38940.0,38931.0,0.27569047]
[1643725237701,0.6496,38944.0,38931.0,0.27569047]
[1643725237901,0.00103221,38940.0,38931.0,0.32569047]
[1643725238302,0.00103221,38940.0,38934.0,0.41091489]
[1643725238501,0.00103221,38940.0,38935.0,0.22889776]
[1643725238901,0.17263115,38946.0,38935.0,0.22889776]
[1643725239105,0.00103215,38940.0,38935.0,0.22889776]
[1643725239355,0.00103215,38940.0,38934.0,0.41091489]
[1643725240049,0.17263115,38946.0,38935.0,0.01958473]
[1643725240250,0.08094333,38945.0,38940.0,0.08867809]
[1643725240451,0.00412807,38945.0,38940.0,0.08867809]
[1643725241452,0.17263115,38946.0,38940.0,0.08867809]
[1643725241653,0.00103217,38944.0,38940.0,0.10796218]
[1643725241851,0.00103217,38944.0,38940.0,0.08867809]
[1643725242451,9.83e-05,38946.0,38940.0,0.08867809]
[1643725242655,0.00103476,38944.0,38941.0,0.27179986]
[1643725242853,0.00103476,38944.0,38941.0,0.064198]
[1643725243095,0.00103476,38944.0,38943.0,0.21761168]
[1643725243294,0.00103476,38944.0,38941.0,0.064198]
[1643725243695,9.83e-05,38946.0,38942.0,0.20016959]
[1643725243896,0.00103476,38944.0,38942.0,0.20016959]
[1643725244398,0.00103476,38944.0,38941.0,0.064198]
[1643725244795,9.83e-05,38946.0,38941.0,0.064198]
[1643725245094,0.00103476,38944.0,38941.0,0.064198]
[1643725245295,0.00103476,38944.0,38941.0,0.29304784]
[1643725245496,0.00103476,38944.0,38941.0,0.064198]
[1643725245695,0.00103476,38944.0,38940.0,0.33988249]
[1643725245896,3.306e-05,38948.0,38941.0,0.5]
[1643725246096,3.306e-05,38948.0,38940.0,0.08867809]
[1643725246296,3.306e-05,38948.0,38940.0,0.3443402]
[1643725246695,3.306e-05,38948.0,38940.0,0.34104543]
[1643725246951,3.306e-05,38948.0,38946.0,0.08865335]
[1643725247849,3.306e-05,38948.0,38946.0,0.08832135]
[1643725250354,3.306e-05,38948.0,38946.0,0.13832135]
[1643725251000,0.28813306,38950.0,38946.0,0.13832135]
[1643725251200,0.00123,38949.0,38947.0,0.23530829]
[1643725251401,0.00123,38949.0,38946.0,0.08832135]
[1643725251600,0.00123,38949.0,38946.0,0.13832135]
[1643725251803,0.00123,38949.0,38946.0,0.36482259]
[1643725252005,0.28813306,38950.0,38946.0,0.13832135]
[1643725253404,0.28313306,38950.0,38946.0,0.13832135]
[1643725253804,0.28313306,38950.0,38946.0,0.08832135]
[1643725254856,0.28436517,38950.0,38946.0,0.08832135]
[1643725255354,0.28436517,38950.0,38939.0,0.38627397]
[1643725255355,0.51911841,38950.0,38939.0,0.128383]
[1643725255554,0.58331346,38950.0,38935.0,0.1851]